Cogmind - Beta 16 @@@ ROGUE MODE // 2025.11.02 @ 16:50:05 Player: Mozco Result: Destroyed by Lightning with EMDS Performance ------------- Evolutions (5) 2500 Regions Visited (13) 2600 Robots Destroyed (91) 455 Value Destroyed (3778) 3778 Prototype IDs (49) 980 Alien Tech Used (0) 0 Bonus (1906) 1906 TOTAL SCORE: 12219 Bonus ------- High Alert Combat Kills 16 Follower Combat Kills 1957 Network Hubs Disabled 200 Registered with UFD 300 Built Enhanced Grunts 300 A7 Reached Mainframe 300 Met R17 at Cetus 500 Friendly Fire -1667 Cogmind --------- Core Integrity 0/1000 Matter 253/300 Energy 294/340 System Corruption 26% Temperature Cool (0) Movement Hovering (68) Location -5/Hub_04(d) Parts ------- > --- POWER (1) -------- Particle Reactor > --- PROPULSION (5) --- Combat Gravmag System Combat Gravmag System Combat Gravmag System Combat Gravmag System Combat Gravmag System > --- UTILITY (9) ------ Large Storage Unit Visual Processing Unit Experimental Signal Interpreter Advanced Melee Analysis Suite Microactuators Experimental Thermal Shield A0-MCA's Component Scanner > --- WEAPON (2) ------- Heavy Mace Phasing Sabre > --- INVENTORY (15) --- Quantum Reactor Quantum Reactor Centrium Heavy Treads Carbon-fiber Leg Enhanced Biometal Leg Wheel Experimental Heat Sink Advanced System Restoration Module Precision Grenade Launcher Improved Plasma Cutter Great Axe Peak State ------------ > --- POWER ------------ Quantum Reactor > --- PROPULSION ------- Centrium Heavy Treads Centrium Heavy Treads Carbon-fiber Leg > --- UTILITY ---------- Medium Storage Unit Experimental Signal Interpreter Advanced Melee Analysis Suite Advanced Melee Analysis Suite Microactuators Microactuators Gun Armor A0-MCA's Component Scanner Advanced System Restoration Module > --- WEAPON ----------- Chainsword Ripper Companion Sword Phasing Sabre > --- INVENTORY -------- Quantum Reactor Centrium Heavy Treads Improved Phase Shifter Layered Medium Armor Plating Advanced System Restoration Module Precision Grenade Launcher Improved Plasma Cutter Heavy Mace Great Axe [Rating: 125] Favorites ----------- Power Subdweller Power Source Engine Subdweller Power Source Power Core Neutrino Core Reactor Particle Reactor Propulsion Carbon-fiber Leg Treads Centrium Heavy Treads Leg Carbon-fiber Leg Wheel Wheel Hover Unit Airjet Flight Unit VTOL Module Utility A0-MCA's Component Scanner Device Microactuators Storage Medium Storage Unit Processor A0-MCA's Component Scanner Hackware Hacking Suite Protection Gun Armor Weapon Companion Sword Energy Gun Subdweller Laser Ballistic Gun Heavy Battle Rifle Ballistic Cannon Gauss Cannon Launcher Precision Grenade Launcher Special Weapon Improved Plasma Cutter Impact Weapon Heavy Mace Slashing Weapon Companion Sword Piercing Weapon Heavy Pick Build | -11 -10 -10 -8 -6 -6 -6 -6 -5 -5 -5 -5 -5 -5 ------- Run | Yrd Mat Sub Scr Fac Low Low Zio Pro Fac Ext Cet Arc Hub Slots Evolved 10 | . . . . 8 . . . . 2 . . . . Power . | . . . . . . . . . . . . . . Propulsion 3 | . . . . 3 . . . . . . . . . Utility 7 | . . . . 5 . . . . 2 . . . . Weapon . | . . . . . . . . . . . . . . Parts Attached 140 | 6 2 17 10 25 . 18 6 4 6 14 8 4 20 Power 19 | 1 . 4 1 4 . 3 . 1 . 1 1 1 2 Engine 11 | 1 . 4 1 3 . 2 . . . . . . . Core 5 | . . . . 1 . 1 . 1 . 1 . . 1 Reactor 3 | . . . . . . . . . . . 1 1 1 Propulsion 62 | 3 . 8 3 9 . 9 . 2 2 8 4 2 12 Treads 7 | 1 . 1 . . . . . . . . 2 2 1 Leg 24 | . . 1 . . . 4 . 2 1 8 2 . 6 Wheel 9 | 2 . 6 1 . . . . . . . . . . Hover 15 | . . . 2 2 . 5 . . 1 . . . 5 Flight 7 | . . . . 7 . . . . . . . . . Utility 36 | 1 1 1 2 9 . 5 3 1 3 2 2 1 5 Device 16 | . 1 . . 2 . 4 1 1 2 1 2 . 2 Storage 4 | 1 . . 1 . . . 1 . . . . . 1 Processor 8 | . . . 1 3 . 1 1 . 1 . . . 1 Hackware 1 | . . . . 1 . . . . . . . . . Protection 7 | . . 1 . 3 . . . . . 1 . 1 1 Artifact . | . . . . . . . . . . . . . . Weapon 23 | 1 1 4 4 3 . 1 3 . 1 3 1 . 1 Energy Gun 4 | 1 1 1 1 . . . . . . . . . . Energy Cannon . | . . . . . . . . . . . . . . Ballistic Gun 4 | . . 3 1 . . . . . . . . . . Ballistic Cannon 1 | . . . 1 . . . . . . . . . . Launcher 1 | . . . . . . . . . . 1 . . . Special Weapon 1 | . . . . . . . . . . . 1 . . Impact Weapon 2 | . . . . 1 . . . . . . . . 1 Slashing Weapon 8 | . . . 1 . . 1 3 . 1 2 . . . Piercing Weapon 2 | . . . . 2 . . . . . . . . . Special Melee Weapon . | . . . . . . . . . . . . . . Unidentified Prototypes . | . . . . . . . . . . . . . . Corrupted Parts 5 | . . 1 . . . . . . . . 2 . 2 System Corruption 14 | . . 2 . . . . . . . . 5 . 7 Parts Lost 52 | . . 7 . 10 1 9 . 3 1 7 2 . 12 Power 7 | . . 2 . 1 . 2 . . . 1 . . 1 Propulsion 23 | . . 2 . 6 1 6 . 2 . 3 1 . 2 Utility 14 | . . . . 2 . . . 1 1 2 1 . 7 Weapon 8 | . . 3 . 1 . 1 . . . 1 . . 2 Highest Loss Streak 8 | . . 3 . 8 1 4 . 1 1 6 2 . 4 To Critical Strikes 2 | . . . . . . . . . 1 . . . 1 Average Backups 8 | 3 7 7 8 9 10 9 9 8 8 9 9 8 8 Power 1 | . 1 . . . 1 1 1 1 1 . 1 1 2 Propulsion 1 | 2 5 4 2 . 1 . . . . . 1 1 1 Utility 3 | . . . 3 4 4 5 6 4 4 4 3 2 1 Weapon 2 | . 1 2 2 3 4 2 2 2 2 2 3 3 1 Tool/Special . | . . . . . . . . . . . . . . Unused Backups 21 | . . 2 1 . 2 . 5 . 1 3 1 1 5 Power 5 | . . . . . . . 1 . . 1 1 1 1 Propulsion 3 | . . 1 . . . . . . . . . . 2 Utility 8 | . . . . . . . 3 . 1 2 . . 2 Weapon 5 | . . 1 1 . 2 . 1 . . . . . . Tool/Special . | . . . . . . . . . . . . . . Average Slot Usage (%) 92 | . 90 96 98 84 76 88 91 91 98 99 90 89 85 Engine 6 | . 14 11 14 4 . 4 5 2 . . . . . Core 1 | . . . . . 5 . . 2 5 4 4 . 2 Treads 2 | . . 9 . . . . . . . . 8 13 9 Leg 9 | . . 1 . . . 10 23 21 21 24 7 2 7 Wheel 6 | . 28 16 18 . . . . . . . . . . Hover 3 | . . . 9 6 . 11 . . 3 . . . . Flight 2 | . . . . 20 20 3 . . . . . . . Device 7 | . 9 7 . 3 5 9 11 9 14 12 14 11 8 Storage 8 | . 14 14 14 5 5 5 5 5 5 5 5 5 7 Processor 13 | . . . 7 18 17 16 17 17 21 21 21 21 19 Protection 5 | . . 6 6 3 5 5 5 5 5 7 5 8 6 Energy Gun 3 | . 23 8 9 1 . . . . . . . . . Ballistic Gun 4 | . . 18 10 . . . . . . . . . . Slashing Weapon 10 | . . . 3 5 5 9 17 23 21 20 19 21 16 Piercing Weapon 1 | . . . . 4 2 5 2 . . . . . . Peak Build Rating 125 | 5 9 19 33 71 69 82 88 92 102 105 125 125 124 Average Rating 63 | 4 7 14 23 55 56 77 83 86 100 101 120 124 111 On Entrance 64 | . 5 9 17 33 69 54 80 88 87 102 105 125 124 Avg Prop Armor Cover (%) 4 | 9 . 4 4 . . 4 . . 3 3 4 4 4 Naked Turns . | . . . . . . . . . . . . . . Heaviest Build 67 | 10 13 22 30 33 29 52 56 60 66 59 55 60 67 Greatest Support 188 | 20 20 40 40 31 31 71 71 86 66 96 160 188 188 Greatest Overweight (x) 5 | 2 . 2 3 5 1 1 . . . . . . 4 Average Overweight (x) . | . . . . . . . . . . . . . . Largest Inventory Capacity 15 | 8 8 8 10 10 10 10 10 10 10 10 10 10 15 Average Capacity 9 | 7 8 8 8 10 10 10 10 10 10 10 10 10 12 Most Carried 13 | 8 8 8 10 10 10 10 10 10 10 10 10 10 13 Average Carried 9 | 4 7 7 8 9 9 9 9 9 9 9 9 9 9 Final Capacity 15 | 8 8 8 10 10 10 10 10 10 10 10 10 10 15 Final Carried 12 | 8 7 8 10 10 10 10 10 9 10 10 10 10 12 Class Distribution -------------------- 37% | Derelict-Gladiator 29% | Mutant 9% | Scavenger-Gladiator 8% | Derelict-Mutant 6% | Commander-Gladiator 4% | Scavenger-Mutant 3% | Scavenger-Sprinter Dominant Class ---------------- Mutant | -10/Materials Mutant | -10/Subcaves Mutant | -8/Scraptown Scavenger-Sprinter | -6/Factory Scavenger-Mutant | -6/Lower Caves Derelict-Gladiator | -6/Lower Caves Derelict-Gladiator | -6/Zion Derelict-Gladiator | -5/Proximity Caves Derelict-Gladiator | -5/Factory Derelict-Gladiator | -5/Extension Commander-Gladiator | -5/Cetus Commander-Gladiator | -5/Archives Scavenger-Gladiator | -5/Hub_04(d) Resources | -11 -10 -10 -8 -6 -6 -6 -6 -5 -5 -5 -5 -5 -5 ----------- Run | Yrd Mat Sub Scr Fac Low Low Zio Pro Fac Ext Cet Arc Hub Matter Collected 2085 | 221 55 398 72 280 . 200 50 45 80 261 93 30 300 Remotely . | . . . . . . . . . . . . . . Salvage Created 4913 | 23 . 437 . 355 61 723 . 217 772 741 131 . 1453 Parts 204 | 4 . 20 . 29 1 39 . 5 23 32 2 . 49 Haulers Intercepted . | . . . . . . . . . . . . . . Recyclers Shooed 1 | . . . . . . . . . . 1 . . . Parts Field Recycled . | . . . . . . . . . . . . . . Retrieved Matter . | . . . . . . . . . . . . . . Parts Self-Destructed 42 | . . . . . 1 39 . 2 . . . . . Prevented 6 | . . . . . . . . 6 . . . . . Parts Restored . | . . . . . . . . . . . . . . Kills | -11 -10 -10 -8 -6 -6 -6 -6 -5 -5 -5 -5 -5 -5 ------- Run | Yrd Mat Sub Scr Fac Low Low Zio Pro Fac Ext Cet Arc Hub Combat Hostiles Destroyed 66 | . . 9 . 8 1 12 . 4 5 12 1 . 14 Melee 50 | . . . . 8 1 12 . 4 5 9 1 . 10 Guns 9 | . . 9 . . . . . . . . . . . AOE 5 | . . . . . . . . . . 3 . . 2 Classes Destroyed 19 | 1 . 3 . 4 1 3 . 1 2 2 . . 2 Worker 9 | . . . . 3 . . . . . . . . 6 Builder 1 | . . . . . . . . . . 1 . . . Tunneler 2 | 1 . . . 1 . . . . . . . . . Recycler 9 | . . . . . . . . . 4 1 . . 4 Operator 2 | . . . . 2 . . . . . . . . . Watcher 1 | . . . . . . . . . . . . . 1 Swarmer 12 | . . . . 7 . 1 . . . 4 . . . Grunt 18 | . . . . 1 . 4 . 2 1 4 . . 6 Brawler 3 | . . . . . . 2 . 1 . . . . . Duelist 1 | . . . . . . 1 . . . . . . . Sentry 10 | . . . . . 1 2 . . 1 3 . . 3 Specialist 1 | . . . . . . . . . . . . . 1 Hunter 2 | . . . . . . 2 . . . . . . . Programmer 5 | . . . . . . . . 1 2 . . . 2 Behemoth 1 | . . . . . . . . . . 1 . . . Cetus Guard 1 | . . . . . . . . . . . 1 . . Lightning 2 | . . . . . . . . . . . . . 2 Artisan 1 | . . 1 . . . . . . . . . . . Cobbler 1 | . . 1 . . . . . . . . . . . Subdweller 9 | . . 9 . . . . . . . . . . . Fireman 1 | . . . . . . . . . 1 . . . . Best Kill Streak 7 | 1 . 2 . 4 1 4 . 2 5 3 1 . 7 Combat Bots Only 4 | . . 2 . 4 1 4 . 2 3 3 1 . 2 Max Kills in Single Turn 2 | 1 . 1 . 1 1 1 . 1 1 2 1 . 1 Gunslinging . | . . . . . . . . . . . . . . Exploded 2 | . . . . . . . . . . 2 . . 1 Melee 1 | . . . . 1 1 1 . 1 1 1 1 . 1 Uniques/NPCs Destroyed 1 | . . . . . . . . . . . 1 . . A7 (-5/Cetus) Combat | -11 -10 -10 -8 -6 -6 -6 -6 -5 -5 -5 -5 -5 -5 -------- Run | Yrd Mat Sub Scr Fac Low Low Zio Pro Fac Ext Cet Arc Hub Hostile Shots Fired 701 | . 2 77 . 86 19 112 . 28 23 81 15 12 246 Missed 223 | . . 24 . 37 10 34 . 9 5 22 8 4 70 Hits 478 | . 2 53 . 49 9 78 . 19 18 59 7 8 176 Melee 9 | . . . . . 1 8 . . . . . . . Projectile 469 | . 2 53 . 49 8 70 . 19 18 59 7 8 176 Critical Strikes 28 | . . 1 . 1 . 2 . 1 1 2 3 . 17 Damage Taken 10638 | . 20 1227 . 772 53 1376 . 453 380 1173 386 383 4415 Core 1583 | . . 221 . 90 5 228 . 22 60 164 37 60 696 Absorbed by Shields 284 | . . . . . . 62 . . . 187 35 . . Redirected to Shielding 59 | . . . . 59 . . . . . . . . . Ignored by Resistances 501 | . . . . . . . . . . 15 . . 486 Core Remaining (%) 56 | 100 . . 11 . . . . 59 . . . . . Volleys Fired 79 | 2 . 69 . . . . . . . 4 . . 4 Largest 2 | 1 . 2 . . . . . . . 1 . . 1 Hottest 93 | 50 . 93 . . . . . . . 36 . . 36 Shots Fired 144 | 2 . 134 . . . . . . . 4 . . 4 Gun 136 | 2 . 134 . . . . . . . . . . . Cannon . | . . . . . . . . . . . . . . Launcher 8 | . . . . . . . . . . 4 . . 4 Special . | . . . . . . . . . . . . . . Kinetic 94 | . . 94 . . . . . . . . . . . Thermal 36 | 2 . 34 . . . . . . . . . . . Explosive 8 | . . . . . . . . . . 4 . . 4 Electromagnetic 6 | . . 6 . . . . . . . . . . . Robot Hit Streak 14 | 2 . 14 . . . . . . . . . . 4 Robot Miss Streak 3 | . . 3 . . . . . . . . . . . Penetration Max . | . . . . . . . . . . . . . . Secondary Targets 2 | . . 2 . . . . . . . . . . . Max Gunslinging Chain 1 | . . 1 . . . . . . . . . . . Shots Hit Robots 358 | 2 . 73 . 24 4 41 . 16 24 49 17 . 108 Core Hits 132 | 1 . 20 . 12 1 19 . 6 9 20 4 . 40 Critical Kills 1 | . . . . . . . . . . . . . 1 Critical Parts Destroyed 3 | . . 1 . . . . . . . . . . 2 Critical Strikes 35 | . . 6 . . . 3 . 3 1 10 1 . 11 Burn 3 | . . 3 . . . . . . . . . . . Destroy 3 | . . 3 . . . . . . . . . . . Smash 3 | . . . . . . . . . . . . . 3 Sever 16 | . . . . . . 1 . 3 1 6 1 . 4 Impale 2 | . . . . . . 2 . . . . . . . Melee Attacks 352 | . . . . 33 8 57 . 18 34 58 18 . 126 Impact 15 | . . . . . . . . . . . . . 15 Slashing 321 | . . . . 30 8 44 . 18 34 58 18 . 111 Piercing 16 | . . . . 3 . 13 . . . . . . . Sneak Attacks 45 | . . . . 5 . . . 1 6 5 6 . 22 Combat Hostiles . | . . . . . . . . . . . . . . Follow-up Attacks 90 | . . . . 1 . 13 . 7 8 13 8 . 40 Damage Inflicted 15078 | 25 5 1238 . 1147 185 1457 . 692 1363 2490 863 . 5613 Guns 1263 | 25 . 1238 . . . . . . . . . . . Cannons . | . . . . . . . . . . . . . . Explosions 654 | . . . . . . . . . . 196 . . 458 Melee 13156 | . . . . 1147 185 1457 . 692 1363 2294 863 . 5155 Ramming 5 | . 5 . . . . . . . . . . . . Kinetic 931 | . . 931 . . . . . . . . . . . Thermal 277 | 25 . 252 . . . . . . . . . . . Explosive 654 | . . . . . . . . . . 196 . . 458 Electromagnetic 55 | . . 55 . . . . . . . . . . . Impact 729 | . . . . . . . . . . . . . 729 Slashing 12209 | . . . . 1122 185 1264 . 692 1363 2294 863 . 4426 Piercing 218 | . . . . 25 . 193 . . . . . . . Highest Corruption 26 | . . 2 . . . . . 3 1 2 7 . 26 Average Corruption 3 | . . 2 . . . . . 2 1 1 2 . 15 Corruption Purged 7 | . . . . . . . . . . . 7 . . Corruption Blocked . | . . . . . . . . . . . . . . Effects 40 | . . 11 . . . . . . 2 8 4 . 15 Message Errors 6 | . . 2 . . . . . . . 1 2 . 1 Matter Fused 12 | . . 2 . . . . . . 1 2 1 . 6 Heat Flow Errors 5 | . . 1 . . . . . . 1 2 . . 1 Energy Discharges 2 | . . 1 . . . . . . . . . . 1 Data Loss (minor) 5 | . . . . . . . . . . 2 1 . 2 Data Loss (major) 4 | . . 2 . . . . . . . 1 . . 1 Alerts 3 | . . 2 . . . . . . . . . . 1 Misdirections 2 | . . . . . . . . . . . . . 2 Weapon Failures 1 | . . 1 . . . . . . . . . . . Overload Shots . | . . . . . . . . . . . . . . Overflow Damage 1102 | . . . . 160 11 62 . 68 164 105 27 . 505 Projectiles . | . . . . . . . . . . . . . . Explosions . | . . . . . . . . . . . . . . Melee 1102 | . . . . 160 11 62 . 68 164 105 27 . 505 Knockbacks 3 | . . . . . . . . . . . . . 3 Impact 2 | . . . . . . . . . . . . . 2 Kinetic . | . . . . . . . . . . . . . . Secondary 1 | . . . . . . . . . . . . . 1 Self-Inflicted Damage 2 | . 2 . . . . . . . . . . . . Shots . | . . . . . . . . . . . . . . Rammed 1 | . 1 . . . . . . . . . . . . Targets Rammed 1 | . 1 . . . . . . . . . . . . Kicked . | . . . . . . . . . . . . . . Crushed . | . . . . . . . . . . . . . . Highest Temperature 290 | 20 . 256 . 1 1 . . 19 120 290 3 . 223 Average Temperature 83 | 12 . 150 . 1 1 . . 10 60 113 3 . 69 Received Heat Transfer 2110 | . . 192 . 18 12 198 . 161 101 498 44 48 838 Effects 2 | . . 2 . . . . . . . . . . . Interference 2 | . . 2 . . . . . . . . . . . Siege Activations . | . . . . . . . . . . . . . . Martial Activations . | . . . . . . . . . . . . . . Shielding Activations . | . . . . . . . . . . . . . . Robots Disrupted 3 | . . . . . . . . . 1 . . . 2 Combat Hostiles 3 | . . . . . . . . . 1 . . . 2 Robots Corrupted 2 | . . . . . . . . . . . . . 2 Combat Hostiles 2 | . . . . . . . . . . . . . 2 Parts Fried 1 | . . . . . . . . . . . . . 1 Impact Corruptions 6 | . . . . . . . . . . . . . 6 Robots Melted . | . . . . . . . . . . . . . . Combat Hostiles . | . . . . . . . . . . . . . . Parts Melted 7 | . . 1 . . . . . 6 . . . . . Heat Transferred 926 | 74 . 852 . . . . . . . . . . . Parts Sabotaged . | . . . . . . . . . . . . . . Parts Stolen 1 | . . . . . 1 . . . . . . . . Parts Stripped . | . . . . . . . . . . . . . . Power Chain Reactions . | . . . . . . . . . . . . . . Alert | -11 -10 -10 -8 -6 -6 -6 -6 -5 -5 -5 -5 -5 -5 ------- Run | Yrd Mat Sub Scr Fac Low Low Zio Pro Fac Ext Cet Arc Hub Maximum Alert Level 2 | . . . . . . . . . . 2 1 1 2 Low Security (%) 60 | 100 100 . . 100 . . . . 100 15 . 42 69 Level 1 30 | . . . . . . . . . . 65 100 57 7 Level 2 8 | . . . . . . . . . . 18 . . 23 Level 3 . | . . . . . . . . . . . . . . Level 4 . | . . . . . . . . . . . . . . Level 5 . | . . . . . . . . . . . . . . High Security . | . . . . . . . . . . . . . . Max Security . | . . . . . . . . . . . . . . Peak Influence 608 | 5 14 . . 50 . . . . 103 565 397 318 608 Initial 304 | . . . . . . . . . 13 19 304 142 107 Average 174 | . 1 . . 9 . . . . 32 328 317 231 224 Influence Increases 3896 | 5 14 . . 249 20 353 . 286 177 1009 363 206 1214 Destroy 0b10 Robot/C 1980 | . . . . 160 20 240 . 180 120 520 160 80 500 Destroy 0b10 Robot/NC 155 | 5 . . . 30 . . . . 20 20 10 . 70 Destroy Leader 266 | . . . . 10 . 20 . 30 30 54 . . 122 Allied During Kill 841 | . . . . . . 3 . 76 3 248 128 74 309 Successful Hack 62 | . 14 . . 4 . . . . . 11 . . 33 Disable Machine 165 | . . . . . . . . . . 75 15 30 45 Destroy Structure 232 | . . . . . . . . . 4 66 50 22 90 Partial Spotted 30 | . . . . 15 . . . . . . . . 15 Lose Combat Pursuer 165 | . . . . 30 . 90 . . . 15 . . 30 Influence Decreases 3716 | 5 14 . . 246 23 349 4 264 158 506 550 255 1342 Entered New Map 693 | . . . . . 2 . 4 . 9 22 240 215 201 Time Decay 1738 | 5 14 . . 156 21 279 . 194 139 334 230 40 326 Lost Part 410 | . . . . 90 . 70 . 30 10 70 20 . 120 Lost Ally 277 | . . . . . . . . 40 . 80 60 . 97 Purge Threat 598 | . . . . . . . . . . . . . 598 Squads Dispatched 12 | . . . . 2 . 1 . . 3 1 . . 5 Investigation 2 | . . . . . . . . . 1 1 . . . Extermination 3 | . . . . 1 . . . . 1 . . . 1 Reinforcement 6 | . . . . 1 . . . . 1 . . . 4 Assault 1 | . . . . . . 1 . . . . . . . Garrison . | . . . . . . . . . . . . . . Intercept . | . . . . . . . . . . . . . . Searches Triggered . | . . . . . . . . . . . . . . Construction Impeded 1 | . . . . . . . . . . . . . 1 Haulers Reinforced 1 | . . . . . . . . . 1 . . . . Active Scanning Responses . | . . . . . . . . . . . . . . Cargo Convoy Interrupts 1 | . . . . 1 . . . . . . . . . Stealth | -11 -10 -10 -8 -6 -6 -6 -6 -5 -5 -5 -5 -5 -5 --------- Run | Yrd Mat Sub Scr Fac Low Low Zio Pro Fac Ext Cet Arc Hub Distress Signals 11 | . 2 . . . . . . . 1 2 2 . 4 Communications Jammed . | . . . . . . . . . . . . . . Distress Signals . | . . . . . . . . . . . . . . Times Spotted 167 | . 4 11 . 29 2 18 . 10 7 27 10 4 45 Peak Tracking Total 12 | . 3 2 . 10 1 5 . 4 2 5 5 2 12 Tactical Retreats 7 | . . . . 1 . 3 . . . 1 . . 2 Traps | -11 -10 -10 -8 -6 -6 -6 -6 -5 -5 -5 -5 -5 -5 ------- Run | Yrd Mat Sub Scr Fac Low Low Zio Pro Fac Ext Cet Arc Hub Traps Triggered 6 | . . 2 . 1 . . . . . 2 . . 1 Indirectly . | . . . . . . . . . . . . . . Trap Hack Attempts . | . . . . . . . . . . . . . . Triggered . | . . . . . . . . . . . . . . Disarmed . | . . . . . . . . . . . . . . Reprogrammed . | . . . . . . . . . . . . . . Reused . | . . . . . . . . . . . . . . Traps Extracted . | . . . . . . . . . . . . . . Installed . | . . . . . . . . . . . . . . Triggered . | . . . . . . . . . . . . . . Machines | -11 -10 -10 -8 -6 -6 -6 -6 -5 -5 -5 -5 -5 -5 ---------- Run | Yrd Mat Sub Scr Fac Low Low Zio Pro Fac Ext Cet Arc Hub Machines Disabled 12 | . . 1 . . . . . . . 5 1 2 3 Max in Single Turn 1 | . . 1 . . . . . . . 1 1 . 1 Garrison Access 3 | . . . . 1 . . . . 1 . . . 1 Network Hub 1 | . . . . . . . . . . . . . 1 Energy Cycler 1 | . . . . . . . . . . 1 . . . Machines Repaired . | . . . . . . . . . . . . . . Machines Dismantled 2 | . . . . . . . . . . . 1 . 1 Machines Sabotaged . | . . . . . . . . . . . . . . Overloaded Fab Kills . | . . . . . . . . . . . . . . Hacking | -11 -10 -10 -8 -6 -6 -6 -6 -5 -5 -5 -5 -5 -5 --------- Run | Yrd Mat Sub Scr Fac Low Low Zio Pro Fac Ext Cet Arc Hub Machines Accessed 28 | . 2 1 4 5 1 1 . . 3 3 2 . 6 Terminals 16 | . 2 . . 2 1 . . . 1 3 2 . 5 Fabricators 1 | . . . . 1 . . . . . . . . . Repair Stations 1 | . . . . . . . . . 1 . . . . Recycling Units 1 | . . . . 1 . . . . . . . . . Scanalyzers . | . . . . . . . . . . . . . . Garrison Access 3 | . . . . 1 . . . . 1 . . . 1 Total Hacks 78 | . 5 1 15 9 1 1 . . 8 5 7 . 26 Successful 46 | . 2 1 15 4 1 1 . . 2 2 2 . 16 Failed 32 | . 3 . . 5 . . . . 6 3 5 . 10 Catastrophic 5 | . . . . . . . . . 1 1 2 . 1 Database Lockouts . | . . . . . . . . . . . . . . Manual 14 | . 5 . . . . . . . . . 1 . 8 Terminals 51 | . 5 . . 6 1 . . . 3 5 7 . 24 Fabricators 1 | . . . . 1 . . . . . . . . . Repair Stations 2 | . . . . . . . . . 2 . . . . Recycling Units 1 | . . . . 1 . . . . . . . . . Scanalyzers . | . . . . . . . . . . . . . . Garrison Access 6 | . . . . 1 . . . . 3 . . . 2 Terminal Hacks 33 | . . 1 15 1 1 1 . . . 2 2 . 10 Record 17 | . . . 14 . 1 . . . . . 2 . . Open Door 3 | . . . 1 . . 1 . . . 1 . . . Emergency Access Points 1 | . . . . . . . . . . . . . 1 Terminal Index 1 | . . . . 1 . . . . . . . . . Alert Level 1 | . . . . . . . . . . . . . 1 Unreport Threat 4 | . . . . . . . . . . . . . 4 Locate Traps 2 | . . . . . . . . . . 1 . . 1 Recall Reinforcements 1 | . . . . . . . . . . . . . 1 Zone Layout 2 | . . . . . . . . . . . . . 2 Proto ID Catalog 1 | . . 1 . . . . . . . . . . . Fabricator Hacks 1 | . . . . 1 . . . . . . . . . Network Status 1 | . . . . 1 . . . . . . . . . Repair Station Hacks 1 | . . . . . . . . . 1 . . . . Scan Component 1 | . . . . . . . . . 1 . . . . Recycling Unit Hacks 1 | . . . . 1 . . . . . . . . . Retrieve Components 1 | . . . . 1 . . . . . . . . . Scanalyzer . | . . . . . . . . . . . . . . Garrison Access Hacks 3 | . . . . 1 . . . . 1 . . . 1 Seal Access 3 | . . . . 1 . . . . 1 . . . 1 Unauthorized Hacks 7 | . 2 . . . . . . . . . . . 5 Terminals 7 | . 2 . . . . . . . . . . . 5 Assimilate 1 | . . . . . . . . . . . . . 1 Botnet 5 | . 2 . . . . . . . . . . . 3 Detonate 1 | . . . . . . . . . . . . . 1 Fabricators . | . . . . . . . . . . . . . . Repair Stations . | . . . . . . . . . . . . . . Recycling Units . | . . . . . . . . . . . . . . Scanalyzers . | . . . . . . . . . . . . . . Garrison Access . | . . . . . . . . . . . . . . Data Cores Recovered 2 | . 1 . . 1 . . . . . . . . . Used 1 | . . . . 1 . . . . . . . . . Hacking Detections 17 | . 2 . . 2 1 . . . 3 2 2 . 5 Full Trace Events 1 | . . . . . . . . . . 1 . . . Feedback Events . | . . . . . . . . . . . . . . Feedback Blocked . | . . . . . . . . . . . . . . Robot Schematics Acquired . | . . . . . . . . . . . . . . Robots Built . | . . . . . . . . . . . . . . Authchips . | . . . . . . . . . . . . . . Time . | . . . . . . . . . . . . . . Total Robot Build Rating . | . . . . . . . . . . . . . . Part Schematics Acquired . | . . . . . . . . . . . . . . Parts Built . | . . . . . . . . . . . . . . Authchips . | . . . . . . . . . . . . . . Time . | . . . . . . . . . . . . . . Total Part Build Rating . | . . . . . . . . . . . . . . Part Studies Acquired . | . . . . . . . . . . . . . . Parts Repaired . | . . . . . . . . . . . . . . Time . | . . . . . . . . . . . . . . Parts Recycled . | . . . . . . . . . . . . . . Recycled Matter . | . . . . . . . . . . . . . . Retrieved Matter . | . . . . . . . . . . . . . . Retrieved Components 2 | . . . . 2 . . . . . . . . . Parts Scanalyzed . | . . . . . . . . . . . . . . Part Schematics Acquired . | . . . . . . . . . . . . . . Parts Damaged . | . . . . . . . . . . . . . . Bothacking | -11 -10 -10 -8 -6 -6 -6 -6 -5 -5 -5 -5 -5 -5 ------------ Run | Yrd Mat Sub Scr Fac Low Low Zio Pro Fac Ext Cet Arc Hub Used RIF Installer . | . . . . . . . . . . . . . . Robots Hacked . | . . . . . . . . . . . . . . Non-combat . | . . . . . . . . . . . . . . Combat . | . . . . . . . . . . . . . . Robot Hacks Applied . | . . . . . . . . . . . . . . Relay Couplers Released . | . . . . . . . . . . . . . . Fabnet Peak Effective % . | . . . . . . . . . . . . . . Robots Rewired 8 | . . . . . . 1 . . . 7 . . . Allies Hacked 2 | . . . . . . . . 1 1 . . . . Hacks Repelled . | . . . . . . . . . . . . . . Allies | -11 -10 -10 -8 -6 -6 -6 -6 -5 -5 -5 -5 -5 -5 -------- Run | Yrd Mat Sub Scr Fac Low Low Zio Pro Fac Ext Cet Arc Hub Total Allies 25 | . . . . . . 1 7 . . 12 5 . . Largest Group 9 | . . . . . . 1 7 6 2 8 9 6 5 Highest-Rated Group 733 | . . . . . . 20 184 154 56 359 733 382 351 Highest-Rated Ally 159 | . . . . . . 20 31 31 28 159 152 96 96 Total Orders 3 | . . . . 3 . . . . . . . . . EXPLORE 3 | . . . . 3 . . . . . . . . . Ally Attacks 403 | . . . . . . 1 . 42 7 122 68 51 112 Total Damage 11238 | . . . . . . . . 663 93 2413 2700 1814 3555 Kills 53 | . . . . . . . . 5 1 16 12 5 14 Allies Corrupted 1 | . . . . . . . . 1 . . . . . Allies Melted . | . . . . . . . . . . . . . . Intel | -11 -10 -10 -8 -6 -6 -6 -6 -5 -5 -5 -5 -5 -5 ------- Run | Yrd Mat Sub Scr Fac Low Low Zio Pro Fac Ext Cet Arc Hub Active Infowar (turns) 506 | . . . . . . 1 . . . . . . 505 Optics 505 | . . . . . . . . . . . . . 505 Jamming 1 | . . . . . . 1 . . . . . . . Robot Analysis Total . | . . . . . . . . . . . . . . Derelict Logs Recovered 11 | . . 1 4 . 2 1 2 1 . . . . . Drone Launches 3 | . . . . 3 . . . . . . . . . Drone Recoveries . | . . . . . . . . . . . . . . Exploration | -11 -10 -10 -8 -6 -6 -6 -6 -5 -5 -5 -5 -5 -5 ------------- Run | Yrd Mat Sub Scr Fac Low Low Zio Pro Fac Ext Cet Arc Hub Turns Passed 9455 | 63 166 1546 1696 663 184 1026 1076 405 561 755 483 94 737 Spaces Moved 7584 | 48 164 1058 1590 808 245 948 881 307 425 463 274 54 319 Core 12 | 9 . . . 3 . . . . . . . . . Treads 767 | . . 283 . . . . . . . . 238 54 192 Legs 2701 | . . 84 . . . 399 881 307 425 463 36 . 106 Wheels 1996 | 39 164 691 1102 . . . . . . . . . . Hover 1239 | . . . 488 194 . 536 . . . . . . 21 Flight 869 | . . . . 611 245 13 . . . . . . . Fastest Speed 23 | 50 80 80 95 23 24 53 120 120 120 120 120 160 68 Average Speed 105 | 90 80 121 104 47 62 92 120 120 120 120 154 160 144 Slowest Speed 390 | 150 80 190 240 300 109 190 120 120 120 120 160 160 390 Overloaded Moves . | . . . . . . . . . . . . . . Propulsion Burnouts . | . . . . . . . . . . . . . . Robots Hopped 1 | . . . . 1 . . . . . . . . . Potential Cave-ins . | . . . . . . . . . . . . . . Cave-ins Triggered . | . . . . . . . . . . . . . . Exploration Rate (%) 54 | 3 36 59 92 19 48 85 84 55 11 70 86 73 38 Regions Visited 13 Branch Regions 10 Pre-discovered Areas 5 | . . 2 1 . . . 2 . . . . . . Known Exits Taken 9 | . . . . 1 1 1 1 1 1 1 1 1 . Unknown Exits Taken 4 | 1 1 1 1 . . . . . . . . . . Scrap Searched 14 | . . 2 5 . . 3 4 . . . . . . Spaces Dug 8 | . . . . . . 2 . . 3 . . . 3 Terrain Destroyed 68 | . . 1 . . . 2 . . 3 28 . . 34 Melee 8 | . . . . . . 2 . . 3 . . . 3 Projectile 1 | . . 1 . . . . . . . . . . . AOE 59 | . . . . . . . . . . 28 . . 31 Terrain Rammed . | . . . . . . . . . . . . . . Walls Destroyed . | . . . . . . . . . . . . . . Machines Disabled . | . . . . . . . . . . . . . . Actions | -11 -10 -10 -8 -6 -6 -6 -6 -5 -5 -5 -5 -5 -5 --------- Run | Yrd Mat Sub Scr Fac Low Low Zio Pro Fac Ext Cet Arc Hub Total 8578 | 63 198 1185 1627 1037 265 1029 903 326 459 638 319 63 466 Wait 254 | . 32 17 . 159 7 6 . 3 . 7 5 . 18 Move 7569 | 47 163 1057 1589 805 244 947 880 306 424 462 273 53 319 Hop 1 | . . . . 1 . . . . . . . . . Pick Up 72 | 7 . 11 10 8 2 4 7 1 5 9 3 1 4 Fast Attach 83 | 6 1 5 6 17 . 15 2 2 3 5 2 2 17 Attach 40 | . 1 7 4 8 . 5 . 1 3 4 1 1 5 Detach 7 | 1 . . . 2 . 2 . . . . . 1 1 Swap 44 | . . 7 2 2 . 1 4 1 1 13 6 1 6 Drop 96 | . . 12 16 5 4 8 10 2 4 16 9 4 6 Fire 79 | 2 . 69 . . . . . . . 4 . . 4 Melee 236 | . . . . 30 8 38 . 10 19 38 10 . 83 Ram 1 | . 1 . . . . . . . . . . . . Kick . | . . . . . . . . . . . . . . Crush . | . . . . . . . . . . . . . . Escape Stasis 3 | . . . . . . . . . . 3 . . . Rewire 80 | . . . . . . 3 . . . 77 . . . Trap . | . . . . . . . . . . . . . . Miscellaneous 13 | . . . . . . . . . . . 10 . 3 Route ------- -11/Scrapyard -10/Materials (discovered 3 exits: [*Mat x2] / *Sub) -10/Subcaves (discovered 2 exits: [*Mat] / *Scr) -8/Scraptown (discovered 2 exits: *Fac x2) -6/Factory (discovered 2 exits: *Low x2) -6/Lower Caves -6/Lower Caves -6/Zion -5/Proximity Caves -5/Factory -5/Extension (discovered 3 exits: *Fac x2 / *Cet) -5/Cetus (discovered 2 exits: *Fac / *Arc) -5/Archives -5/Hub_04(d) (discovered 1 exit: *Fac) History --------- Turn | Location | Event 17 | -11/Scrapyard | Discovered new exit (range 15) 64 | -11/Scrapyard | Entered Materials 65 | -10/Materials | Met a group of wandering Federalists 163 | -10/Materials | Discovered new exit (range 15) 210 | -10/Materials | Discovered new exit (range 6) 223 | -10/Materials | Discovered new exit (range 6) 230 | -10/Materials | Entered Subcaves 231 | -10/Subcaves | Continued accompanying wandering Federalists (1) 231 | -10/Subcaves | Approached by a straggling Scientist 305 | -10/Subcaves | Lost 3 parts (1p1n1w) 316 | -10/Subcaves | Build established: Mutant 395 | -10/Subcaves | Learned location of Zion (-6) 395 | -10/Subcaves | Met a Zionite searching for "candidates" 922 | -10/Subcaves | Scientist uncovered a shortcut to Scraptown 1022 | -10/Subcaves | Shifting Twisted Machinery released Sub. Power Source 1029 | -10/Subcaves | Shifting Twisted Machinery released Mak. Light Armor Plating 1110 | -10/Subcaves | Core integrity fell below 50% 1231 | -10/Subcaves | Visited 4L-MR0's lab 1246 | -10/Subcaves | Found Gun Armor 1364 | -10/Subcaves | Lost 3 parts (1p1n1w) 1366 | -10/Subcaves | Shifting Twisted Machinery released Sub. Beam Cannon 1367 | -10/Subcaves | Shifting Twisted Machinery released Sub. Beam Cannon 1378 | -10/Subcaves | Discovered new exit (range 12) 1732 | -10/Subcaves | Core integrity fell below 20% 1776 | -10/Subcaves | Entered Scraptown 1776 | -8/Scraptown | System corruption cleaned by C-Scrubber 1825 | -8/Scraptown | Visited Cyclists 1879 | -8/Scraptown | Visited Artisan Demo Area 1896 | -8/Scraptown | Visited UFD Registry 1896 | -8/Scraptown | Registered with UFD as "Wireforce" 1909 | -8/Scraptown | Visited Shadow of the Wyrm 1918 | -8/Scraptown | Visited Science Testing Area 1937 | -8/Scraptown | Visited SPCMW 1995 | -8/Scraptown | Entered Cyclist Reading Room 2027 | -8/Scraptown | Visited Awakened 2357 | -8/Scraptown | Scanned Subdweller tech in exchange for log data 2359 | -8/Scraptown | Learned Factory terminal intel 2360 | -8/Scraptown | Learned Research interactive machine intel 2361 | -8/Scraptown | Learned 8 Research zone layouts 2364 | -8/Scraptown | Learned location of 1 exit from Lower Caves 2380 | -8/Scraptown | Discovered new exit (range 9) 2529 | -8/Scraptown | Visited A0-MCA Data Center 2535 | -8/Scraptown | Given a B- rating by A0-MCA 2542 | -8/Scraptown | Found A0-MCA's Component Scanner 2563 | -8/Scraptown | Visited LU-1G1's Boring Crew 2613 | -8/Scraptown | Visited Junk Repository 2655 | -8/Scraptown | Visited Abandonware Association 2663 | -8/Scraptown | Learned abandonware demo "OVRCLOCK.EXE" 2668 | -8/Scraptown | Learned abandonware demo "TRNCOAT.EXE" 2836 | -8/Scraptown | Visited DA-N13 Charitable Foundation 2852 | -8/Scraptown | Found DCF Scrap (31 items) 2928 | -8/Scraptown | Visited Chapter 10 2987 | -8/Scraptown | Visited Sword Containment 3149 | -8/Scraptown | Build established: Derelict-Mutant 3321 | -8/Scraptown | Visited Infowarlord's Domain 3331 | -8/Scraptown | Found Exp. Signal Interpreter 3371 | -8/Scraptown | Visited Scrap Suit Storage 3467 | -8/Scraptown | Discovered new exit (range 5) 3472 | -8/Scraptown | Entered Factory 3472 | -6/Factory | Evolved 8 slots: Propulsion x3, Utility x5 3473 | -6/Factory | Loaded intel: 25 terminal locations 3497 | -6/Factory | Discovered new exit (range 20) 3536 | -6/Factory | Identified exit to Lower Caves 3685 | -6/Factory | Lost 8 parts (1p4n2u1w) 3833 | -6/Factory | Attached Gun Armor, gained temporary slots: Weapon x2 3893 | -6/Factory | Discovered exit to Lower Caves (range 15) 4091 | -6/Factory | Cargo convoy interrupted 4135 | -6/Factory | Entered Lower Caves 4136 | -6/Lower Caves | Identified exit to Lower Caves 4157 | -6/Lower Caves | Learned Factory emergency access door positions 4192 | -6/Lower Caves | Attracted the attention of an 0b10 checkpoint 4278 | -6/Lower Caves | Learned Factory garrison access intel 4319 | -6/Lower Caves | Entered another Lower Caves area 4401 | -6/Lower Caves | Attracted the attention of an 0b10 outpost 4449 | -6/Lower Caves | Found DCF Scrap (13 items) 4470 | -6/Lower Caves | Lost 4 parts (2p1n1w) 4507 | -6/Lower Caves | Encountered a Warlord checkpoint 4612 | -6/Lower Caves | Entered a destroyed Warlord outpost 4634 | -6/Lower Caves | Build established: Derelict-Gladiator 4842 | -6/Lower Caves | Learned 4 Factory zone layouts 4967 | -6/Lower Caves | Lost 3 parts (3n) 5266 | -6/Lower Caves | Attracted the attention of an 0b10 checkpoint 5338 | -6/Lower Caves | Discovered new exit (range 6) 5344 | -6/Lower Caves | Identified exit to Zion 5345 | -6/Lower Caves | Entered Zion 5403 | -6/Zion | Learned Factory stockpile data 5461 | -6/Zion | Learned location of Warlord (-4) 5834 | -6/Zion | Learned Factory garrison access intel 5853 | -6/Zion | Learned location of Quarantine (-3) 5980 | -6/Zion | Gained Derelict followers 6278 | -6/Zion | Discovered new exit (range 10) 6408 | -6/Zion | Identified exit to Proximity Caves 6421 | -6/Zion | Entered Proximity Caves 6421 | -5/Proximity Caves | Accompanied by 7 allies 6448 | -5/Proximity Caves | Attracted the attention of an 0b10 checkpoint 6559 | -5/Proximity Caves | Learned Factory stockpile data 6669 | -5/Proximity Caves | Lost 3 allies 6820 | -5/Proximity Caves | Discovered new exit (range 6) 6825 | -5/Proximity Caves | Identified exit to Factory 6826 | -5/Proximity Caves | Entered Factory 6826 | -5/Factory | Accompanied by 2 allies 6826 | -5/Factory | Evolved 2 slots: Utility x2 6830 | -5/Factory | Loaded intel: 4 garrison access locations 6990 | -5/Factory | Noticed UFD Elites at a Recycling Unit 7149 | -5/Factory | P-70 Sage assimilated allied 6G-Y0J(i) 7167 | -5/Factory | Discovered new exit (range 16) 7385 | -5/Factory | Identified exit to Extension 7387 | -5/Factory | Entered Extension 7440 | -5/Extension | Rescued a captive Derelict 7441 | -5/Extension | Rescued a captive Derelict 7526 | -5/Extension | Energy Cycler disabled 7526 | -5/Extension | Rescued a captive Derelict 7526 | -5/Extension | Rescued a captive Derelict 7527 | -5/Extension | Rescued a captive Derelict 7529 | -5/Extension | Rescued a captive Derelict 7532 | -5/Extension | Rescued a captive Derelict 7537 | -5/Extension | Rescued a captive Derelict 7549 | -5/Extension | Rescued A7 7720 | -5/Extension | Spotted B-75 Beast 7733 | -5/Extension | Spotted B-75 Beast 7739 | -5/Extension | Discovered new exit (range 15) 7750 | -5/Extension | Allies destroyed B-75 Beast 7767 | -5/Extension | Destroyed B-75 Beast 7794 | -5/Extension | Lost 6 parts (1p2n2u1w) 8119 | -5/Extension | Discovered new exit (range 10) 8120 | -5/Extension | Discovered new exit (range 6) 8128 | -5/Extension | Identified exit to Cetus 8134 | -5/Extension | Identified exit to Factory 8142 | -5/Extension | Entered Cetus 8142 | -5/Cetus | Accompanied by 8 allies (A7) 8147 | -5/Cetus | Acquired a Cetus Manufacturing Module code from A7 8158 | -5/Cetus | Spotted Cetus Guard 8158 | -5/Cetus | Spotted Cetus Guard 8164 | -5/Cetus | Spotted Cetus Guard 8166 | -5/Cetus | Spotted Cetus Guard 8174 | -5/Cetus | Allies destroyed Cetus Guard 8177 | -5/Cetus | Allies destroyed Cetus Guard 8182 | -5/Cetus | Allies destroyed Cetus Guard 8185 | -5/Cetus | Destroyed Cetus Guard 8216 | -5/Cetus | Lost 4 allies 8248 | -5/Cetus | Started Cetus Manufacturing Module 8273 | -5/Cetus | Manufactured an Enhanced Grunt 8278 | -5/Cetus | Escorted A7 to Cetus Mainframe 8298 | -5/Cetus | Manufactured an Enhanced Grunt 8323 | -5/Cetus | Manufactured an Enhanced Grunt 8348 | -5/Cetus | Manufactured an Enhanced Grunt 8373 | -5/Cetus | Manufactured an Enhanced Grunt 8469 | -5/Cetus | Discovered new exit (range 16) 8505 | -5/Cetus | Spotted Cetus Guard 8506 | -5/Cetus | Spotted Cetus Guard 8511 | -5/Cetus | Spotted Cetus Guard 8511 | -5/Cetus | Spotted Cetus Guard 8522 | -5/Cetus | Allies destroyed Cetus Guard 8522 | -5/Cetus | Discovered exit to Factory (range 16) 8522 | -5/Cetus | Allies destroyed Cetus Guard 8532 | -5/Cetus | Allies destroyed Cetus Guard 8535 | -5/Cetus | Allies destroyed Cetus Guard 8538 | -5/Cetus | Met Revision 17 8571 | -5/Cetus | Found Exp. Thermal Shield 8591 | -5/Cetus | Build established: Commander-Gladiator 8607 | -5/Cetus | Identified exit to Archives 8620 | -5/Cetus | Murdered A7 8622 | -5/Cetus | Extracted ID and sensor layout for unrecognized location from A7's data core 8625 | -5/Cetus | Entered Archives 8625 | -5/Archives | Accompanied by 6 allies 8683 | -5/Archives | Discovered new exit (range 15) 8717 | -5/Archives | Identified exit to Hub_04(d) 8719 | -5/Archives | Entered Hub_04(d) 8719 | -5/Hub_04(d) | Accompanied by 5 allies 8790 | -5/Hub_04(d) | Lost 4 parts (3u1w) 8795 | -5/Hub_04(d) | Core integrity fell below 50% 9037 | -5/Hub_04(d) | Build established: Scavenger-Gladiator 9043 | -5/Hub_04(d) | Network Hub disabled 9095 | -5/Hub_04(d) | Spotted Lightning 9101 | -5/Hub_04(d) | Spotted Lightning 9102 | -5/Hub_04(d) | Spotted Lightning 9126 | -5/Hub_04(d) | Destroyed Lightning 9153 | -5/Hub_04(d) | Lost 4 parts (1n2u1w) 9157 | -5/Hub_04(d) | System corruption reached 10% 9200 | -5/Hub_04(d) | Destroyed Lightning 9293 | -5/Hub_04(d) | Discovered exit to Factory (range 11) 9354 | -5/Hub_04(d) | Core integrity fell below 20% 9423 | -5/Hub_04(d) | Spotted Lightning 9428 | -5/Hub_04(d) | Spotted Lightning 9433 | -5/Hub_04(d) | Spotted Lightning 9456 | -5/Hub_04(d) | Destroyed by Lightning with EMDS Last Messages --------------- 09437_ Penetrated by EMDS Slug. 09437_ EMDS Slug penetrates Wall. 09438_ Penetrated by EMDS Slug. 09439_ Med. Storage Unit destroyed. 09439_ Penetrated by EMDS Slug. 09440_ Dropped Carbon-fiber Leg. 09440_ Penetrated by EMDS Slug. 09440_ Acquired Cmb. Gravmag System. 09441_ Penetrated by EMDS Slug. 09447_ EMDS Slug penetrates Archive Unit. 09449_ K-01 Serf collects debris. 09451_ Sneak attack on K-01 Serf. 09451_ K-01 Serf destroyed. 09453_ System corrupted: Energy discharge (-68). 09453_ Penetrated by EMDS Slug. 09453_ Gun Armor destroyed. Companion Sword: "Pick me up right this instant!" 09453_ Temporary Weapon slot lost. 09454_ EMDS Slug penetrates Wall. 09456_ Penetrated by EMDS Slug. Map ----- +----------------------------------------------------+ | ?????????????????????????????????????????????????? | | ?????????????????????????????????????????????????? | | ?????????????????????????????????????????????????? | | ?????????????????????????????????????????????????? | | ?????????????????????????????????????????????????? | | ?????????????????????????????????????????????????? | | ?????????????????????????????????????????????????? | | ?????????????????????????????????????????????????? | | ?????????????????????????????????????????????????? | | ?????????????????????????????????????????????????? | | ?????????????????????????????????????????????????? | | ??????????????#####??????????????????????????????? | | ??????????????? ???#??????????????????????????? | | ???????????????? ?? #???###########?#??????????? | | ??????????#######+###+##??# """T""" ???????????? | | ??????????# #??# """ """ #??????????? | | ??????????#! """" "" #??# #??????????? | | ??????????# """" #??# """ """ ???????????? | | ??????????# """" g #??# # #??????? | | ??????????# """ hh #??# """ """ # #??????? | | ?"" ?????# g #### != # #??????? | | ?"" !!??# = """i ##;###+######### ##?????? | | !!! # = ] """"g# =%#%[#####?# #?????? | | " ===] """"gh *=*#!##[ ### #?????? | | " # !] "" " ; [[!+%%=!< #?????? | | T" ??# # @!|#*##| ### #?????? | | "" ????# # %!#%### ##?# #?????? | | !??????## ########### +=###+##########?????? | | ##############?????????# # # ?????? | | ! #?????????# # # """ """ T ?????? | | #?????????# + # ?????? | | #?????????######%# ?????? | | ########??????##%#####+######+#?????? | | ####+######+## #??????#T=#???# ^^ ?????? | | ## """" #??????## #???# ^^ ?????? | | ########## ## """" #???????#!##??# ^^ ?????? | | [ ## ## """" #?????###%#######+######?????? | | ## ## " " ####??#!!!==## # "?????? | | ## ## = #??#%[!!!## # "?????? | | # *!!##+###########%!=!=## ? "?????? | | +!!% % %[[=%%!%%=]]%!%= ## # "?????? | | # [T==%[[ =] ]*!%]=!!!% ## # ?????? | | #/ ###############%* ### # ?????? | | $% ## ## #=! ### # ?????? | | * ?## ## # " " " # #?# # ?????? | | ######???# ### # ""^ " " # ### # ?????? | | ?????????# #?#### "T^ " " + ### ###?????? | | #####????# #????# "" %^ # % ### #???????? | | [ ######++###### "" ^^ # ###########???????? | | ## # # %##????????????????? | +----------------------------------------------------+ Best States ------------- Heat Dissipation 56 Energy Generation 25 Energy Capacity 350 Matter Stores 300 Matter Capacity 300 Sight Range 18 Terrain Scan Density 10 Additional Mass Support 9 Corruption Containment 8 Armor Coverage 285 Resistance: TH 30 Propulsion Shielding 66 Melee Speed Boost 40 Phase Shifting 10 Evasion (%) 65 Melee Accuracy 16 Recoil Reduction 5 Force Boost 20 Offensive Hacking 10 Item Schematics ----------------- None Robot Schematics ------------------ None Fabricated ------------ Nothing Repaired ---------- Nothing Studied --------- None Alien Tech Used ----------------- None Achievements -------------- Art Critic Better Safe Than Exploded Challenges ------------ None Game ------ Seed TechLinearSuite Manual? 0 Play Time 01:33:11 Cumulative 194.4 hours Start 2025.11.02 @ 15:12:54 End 2025.11.02 @ 16:50:05 Sessions 1 Manual Loads 0 Difficulty Rogue Special Mode None Game No. 201 Rogue 197 Adventurer 3 Explorer 1 Win Type - Total 1 Types 1/0/0/0/0/0/0/0/0/0 Lore% 71 Gallery% 71 Achievement% 50 Wizard Run 0 Options --------- Layout 0 ASCII 0 Keyboard 0 Movement Mouse Keybinds 0 Fullscreen 2 Font 18/SmallcapsGlow Map View 76x50 Zoom Use 0% Tactical HUD 1 Map Filters NONE Filters NONE Steam 1 RUN: 8fd78664-a917-44ee-8bbe-9101dd870026